[Event "*** Titled Tuesday Blitz"]
[Site "Chess.com"]
[Date "2019.06.04"]
[Round "1"]
[White "MishkaFighter"]
[Black "pultineviciuspaulius"]
[Result "0-1"]
[WhiteElo "2363"]
[BlackElo "2718"]
[TimeControl "180+2"]
[EndTime "13:08:29 PDT"]
[Termination "pultineviciuspaulius won on time"]

1. Nf3 {[%clk 0:03:01.4]} 1... Nf6 {[%clk 0:03:00]} 2. g3 {[%clk 0:03:01.3]}
2... g6 {[%clk 0:03:00.7]} 3. Bg2 {[%clk 0:03:02.5]} 3... Bg7 {[%clk 0:03:02.2]}
4. O-O {[%clk 0:03:04.1]} 4... O-O {[%clk 0:03:04.1]} 5. c4 {[%clk 0:02:58.5]}
5... c6 {[%clk 0:03:03.6]} 6. d4 {[%clk 0:02:53.7]} 6... d5 {[%clk 0:03:04.1]}
7. cxd5 {[%clk 0:02:55.6]} 7... cxd5 {[%clk 0:03:05.9]} 8. Ne5 {[%clk
0:02:57.2]} 8... e6 {[%clk 0:02:58.3]} 9. Nc3 {[%clk 0:02:57.2]} 9... Nfd7
{[%clk 0:02:51.4]} 10. Nf3 {[%clk 0:02:53.4]} 10... Nf6 {[%clk 0:02:51.8]} 11.
Ne5 {[%clk 0:02:53.8]} 11... Nfd7 {[%clk 0:02:52]} 12. Nf3 {[%clk 0:02:46.9]}
12... Nc6 {[%clk 0:02:24.2]} 13. Bf4 {[%clk 0:02:38.8]} 13... Nf6 {[%clk
0:02:02.6]} 14. Rc1 {[%clk 0:02:36.8]} 14... Qb6 {[%clk 0:01:52.6]} 15. Na4
{[%clk 0:02:32.6]} 15... Qa5 {[%clk 0:01:44.9]} 16. a3 {[%clk 0:02:22.8]} 16...
Ne4 {[%clk 0:01:44]} 17. b4 {[%clk 0:01:52.4]} 17... Qd8 {[%clk 0:01:43.9]} 18.
Nc5 {[%clk 0:01:37.7]} 18... Nd6 {[%clk 0:01:14.5]} 19. Qd3 {[%clk 0:01:13.1]}
19... Nc4 {[%clk 0:01:10.8]} 20. e4 {[%clk 0:00:46.4]} 20... b5 {[%clk
0:01:11.4]} 21. Rfe1 {[%clk 0:00:39.6]} 21... a5 {[%clk 0:01:12.1]} 22. exd5
{[%clk 0:00:39.6]} 22... exd5 {[%clk 0:01:11.3]} 23. Ne5 {[%clk 0:00:39.9]}
23... N6xe5 {[%clk 0:01:05.4]} 24. dxe5 {[%clk 0:00:41]} 24... Be6 {[%clk
0:01:06.9]} 25. Nb7 {[%clk 0:00:28.8]} 25... Qb6 {[%clk 0:01:03.7]} 26. Nxa5
{[%clk 0:00:29.3]} 26... Nxa5 {[%clk 0:01:05.2]} 27. bxa5 {[%clk 0:00:31.2]}
27... Qxa5 {[%clk 0:01:06.2]} 28. Red1 {[%clk 0:00:25.9]} 28... Rfd8 {[%clk
0:01:01]} 29. Bg5 {[%clk 0:00:17.1]} 29... Rd7 {[%clk 0:01:02.3]} 30. Bf6 {[%clk
0:00:17.7]} 30... Bf8 {[%clk 0:00:53.1]} 31. h4 {[%clk 0:00:08.1]} 31... Re8
{[%clk 0:00:41.9]} 32. h5 {[%clk 0:00:08.1]} 32... Bf5 {[%clk 0:00:41.2]} 33.
Qc3 {[%clk 0:00:06.8]} 33... Qxa3 {[%clk 0:00:40]} 34. Qc6 {[%clk 0:00:05.6]}
34... Be6 {[%clk 0:00:13.2]} 0-1

[Event "*** Titled Tuesday Blitz"]
[Site "Chess.com"]
[Date "2019.06.04"]
[Round "1"]
[White "el-reptiliano"]
[Black "2nd_life"]
[Result "0-1"]
[WhiteElo "2178"]
[BlackElo "2561"]
[TimeControl "180+2"]
[EndTime "13:08:30 PDT"]
[Termination "2nd_life won by resignation"]

1. Nf3 {[%clk 0:02:59.2]} 1... Nf6 {[%clk 0:03:00.4]} 2. c4 {[%clk 0:02:57.3]}
2... g6 {[%clk 0:02:58.5]} 3. Nc3 {[%clk 0:02:56.9]} 3... Bg7 {[%clk 0:03:00]}
4. e4 {[%clk 0:02:56.4]} 4... O-O {[%clk 0:03:00.6]} 5. d4 {[%clk 0:02:56.5]}
5... d6 {[%clk 0:03:01.9]} 6. h3 {[%clk 0:02:56.5]} 6... e5 {[%clk 0:02:56.8]}
7. d5 {[%clk 0:02:57.7]} 7... Na6 {[%clk 0:02:48.6]} 8. Be3 {[%clk 0:02:57.7]}
8... Nc5 {[%clk 0:02:42.2]} 9. Nd2 {[%clk 0:02:57.9]} 9... a5 {[%clk 0:02:42.1]}
10. g4 {[%clk 0:02:51.5]} 10... c6 {[%clk 0:02:31.5]} 11. Qc2 {[%clk 0:02:36.7]}
11... Bd7 {[%clk 0:02:21.3]} 12. Be2 {[%clk 0:02:33.3]} 12... a4 {[%clk
0:02:16.5]} 13. g5 {[%clk 0:02:31.8]} 13... Nh5 {[%clk 0:02:08.5]} 14. Bxh5
{[%clk 0:02:28.3]} 14... gxh5 {[%clk 0:02:08.1]} 15. b4 {[%clk 0:01:53.9]} 15...
axb3 {[%clk 0:02:01.7]} 16. Nxb3 {[%clk 0:01:54.9]} 16... Nxb3 {[%clk
0:01:11.1]} 17. Qxb3 {[%clk 0:01:55.1]} 17... c5 {[%clk 0:01:12]} 18. Ke2 {[%clk
0:01:39.3]} 18... Qc8 {[%clk 0:01:05.1]} 19. Nb5 {[%clk 0:01:22.6]} 19... Ra6
{[%clk 0:00:59]} 20. Bd2 {[%clk 0:01:21.1]} 20... f5 {[%clk 0:00:52.2]} 21. gxf6
{[%clk 0:01:19.1]} 21... Rxf6 {[%clk 0:00:52.9]} 22. Rag1 {[%clk 0:01:13.5]}
22... Rg6 {[%clk 0:00:53.6]} 23. Rxg6 {[%clk 0:00:51.3]} 23... hxg6 {[%clk
0:00:54]} 24. Qg3 {[%clk 0:00:52.7]} 24... Be8 {[%clk 0:00:30.9]} 25. a4 {[%clk
0:00:53.7]} 25... Qd7 {[%clk 0:00:23.5]} 26. a5 {[%clk 0:00:49.6]} 26... Kh7
{[%clk 0:00:22.1]} 27. h4 {[%clk 0:00:40.9]} 27... Qf7 {[%clk 0:00:14.5]} 28.
Rg1 {[%clk 0:00:27.3]} 28... Bd7 {[%clk 0:00:13.9]} 29. f3 {[%clk 0:00:27.2]}
29... Be8 {[%clk 0:00:14.7]} 30. Qe1 {[%clk 0:00:19.7]} 30... Qe7 {[%clk
0:00:13]} 31. Bg5 {[%clk 0:00:20.3]} 31... Qd7 {[%clk 0:00:10.8]} 32. Qd2 {[%clk
0:00:19.4]} 32... b6 {[%clk 0:00:11.4]} 33. axb6 {[%clk 0:00:19.3]} 33... Rxb6
{[%clk 0:00:13.3]} 34. Qa2 {[%clk 0:00:19.8]} 34... Qb7 {[%clk 0:00:11.8]} 35.
Ra1 {[%clk 0:00:18.5]} 35... Bxb5 {[%clk 0:00:12]} 36. cxb5 {[%clk 0:00:20.4]}
36... Rxb5 {[%clk 0:00:13.7]} 37. Qa7 {[%clk 0:00:21.3]} 37... Rb2+ {[%clk
0:00:14.6]} 38. Kf1 {[%clk 0:00:12.7]} 38... Qb5+ {[%clk 0:00:15.4]} 39. Kg1
{[%clk 0:00:14.3]} 39... Qe2 {[%clk 0:00:16.3]} 0-1

[Event "*** Titled Tuesday Blitz"]
[Site "Chess.com"]
[Date "2019.06.04"]
[Round "1"]
[White "Alopekos"]
[Black "joppie2"]
[Result "0-1"]
[WhiteElo "2479"]
[BlackElo "2899"]
[TimeControl "180+2"]
[EndTime "13:08:33 PDT"]
[Termination "joppie2 won by resignation"]

1. e4 {[%clk 0:03:00.7]} 1... c5 {[%clk 0:02:56.5]} 2. Nf3 {[%clk 0:02:57.6]}
2... e6 {[%clk 0:02:56.9]} 3. d4 {[%clk 0:02:58.4]} 3... cxd4 {[%clk 0:02:58.8]}
4. Nxd4 {[%clk 0:03:00.3]} 4... a6 {[%clk 0:02:57.2]} 5. Nc3 {[%clk 0:03:00.6]}
5... b5 {[%clk 0:02:56.1]} 6. Bd3 {[%clk 0:02:58.4]} 6... Bb7 {[%clk 0:02:55.9]}
7. O-O {[%clk 0:02:59.1]} 7... Nc6 {[%clk 0:02:54.3]} 8. Nxc6 {[%clk 0:02:57.8]}
8... Bxc6 {[%clk 0:02:56.2]} 9. Re1 {[%clk 0:02:58.8]} 9... d6 {[%clk
0:02:52.7]} 10. a4 {[%clk 0:02:59.7]} 10... Rb8 {[%clk 0:02:51.3]} 11. axb5
{[%clk 0:02:59.5]} 11... axb5 {[%clk 0:02:50.8]} 12. Ra6 {[%clk 0:02:53]} 12...
Qc8 {[%clk 0:02:48.1]} 13. Rxc6 {[%clk 0:02:34.6]} 13... Qxc6 {[%clk 0:02:48.6]}
14. Qe2 {[%clk 0:02:36.5]} 14... b4 {[%clk 0:02:44.9]} 15. Bb5 {[%clk
0:02:30.5]} 15... Rxb5 {[%clk 0:02:45.4]} 16. Qxb5 {[%clk 0:02:02.4]} 16... Qxb5
{[%clk 0:02:37.1]} 17. Nxb5 {[%clk 0:02:04.3]} 17... Nf6 {[%clk 0:02:36.8]} 18.
Bd2 {[%clk 0:01:52.5]} 18... d5 {[%clk 0:02:36.5]} 19. Ra1 {[%clk 0:01:36.1]}
19... Kd7 {[%clk 0:02:19.6]} 20. Ra8 {[%clk 0:01:31.9]} 20... Kc6 {[%clk
0:02:19.5]} 21. Bxb4 {[%clk 0:01:01.7]} 21... Kxb5 {[%clk 0:01:49.1]} 22. Rxf8
{[%clk 0:01:01.7]} 22... Rxf8 {[%clk 0:01:46.7]} 23. Bxf8 {[%clk 0:01:03.6]}
23... g6 {[%clk 0:01:41.6]} 24. exd5 {[%clk 0:01:01.5]} 24... Nxd5 {[%clk
0:01:43.5]} 25. Kf1 {[%clk 0:00:50.9]} 25... e5 {[%clk 0:01:36.4]} 26. Ke2
{[%clk 0:00:45.8]} 26... e4 {[%clk 0:01:37.2]} 27. g3 {[%clk 0:00:31.7]} 27...
f5 {[%clk 0:01:37.5]} 28. b3 {[%clk 0:00:30.4]} 28... Nc3+ {[%clk 0:01:37.5]}
29. Kd2 {[%clk 0:00:27.9]} 29... Nb1+ {[%clk 0:01:38.7]} 30. Ke3 {[%clk
0:00:27.3]} 30... Nc3 {[%clk 0:01:39.5]} 31. Kd4 {[%clk 0:00:24]} 31... Nd1
{[%clk 0:01:40.7]} 32. c4+ {[%clk 0:00:21]} 32... Kb6 {[%clk 0:01:41.3]} 33. b4
{[%clk 0:00:18.6]} 33... Nxf2 {[%clk 0:01:42.6]} 34. c5+ {[%clk 0:00:05.7]}
34... Kb5 {[%clk 0:01:42.3]} 35. Bh6 {[%clk 0:00:03.4]} 35... Ng4 {[%clk
0:01:29.2]} 36. Bd2 {[%clk 0:00:03.8]} 36... Nxh2 {[%clk 0:01:30.7]} 37. Kd5
{[%clk 0:00:04.3]} 37... Nf1 {[%clk 0:01:31.7]} 38. c6 {[%clk 0:00:04.1]} 38...
e3 {[%clk 0:01:31.2]} 39. Be1 {[%clk 0:00:03.5]} 39... Kb6 {[%clk 0:01:30.5]}
40. Kd6 {[%clk 0:00:04.1]} 40... Nd2 {[%clk 0:01:28.8]} 41. c7 {[%clk 0:00:05]}
41... Nc4+ {[%clk 0:01:25.6]} 42. Kd5 {[%clk 0:00:05.4]} 42... Kb5 {[%clk
0:01:25.8]} 43. Kd4 {[%clk 0:00:02.4]} 43... Nd6 {[%clk 0:01:21.9]} 44. Kxe3
{[%clk 0:00:03.2]} 44... Kc6 {[%clk 0:01:23.5]} 45. Bc3 {[%clk 0:00:03.8]} 45...
Kxc7 {[%clk 0:01:23.7]} 46. Be5 {[%clk 0:00:04.8]} 46... Kd7 {[%clk 0:01:25.3]}
47. Bxd6 {[%clk 0:00:05.5]} 47... Kxd6 {[%clk 0:01:26.8]} 48. Kf4 {[%clk
0:00:07.4]} 48... h6 {[%clk 0:01:23.9]} 49. b5 {[%clk 0:00:06.3]} 49... Ke6
{[%clk 0:01:24.7]} 50. b6 {[%clk 0:00:07.1]} 50... g5+ {[%clk 0:01:26.3]} 51.
Ke3 {[%clk 0:00:06.6]} 51... Kd6 {[%clk 0:01:27.8]} 52. Kd4 {[%clk 0:00:08]}
52... h5 {[%clk 0:01:28.6]} 0-1

[Event "*** Titled Tuesday Blitz"]
[Site "Chess.com"]
[Date "2019.06.04"]
[Round "1"]
[White "KRASAVCHIK2002"]
[Black "Meharchinnareddy"]
[Result "0-1"]
[WhiteElo "2283"]
[BlackElo "2638"]
[TimeControl "180+2"]
[EndTime "13:08:36 PDT"]
[Termination "Meharchinnareddy won by resignation"]

1. e4 {[%clk 0:03:01.9]} 1... c5 {[%clk 0:02:56.7]} 2. Nf3 {[%clk 0:03:03.1]}
2... d6 {[%clk 0:02:57.9]} 3. d4 {[%clk 0:03:04.4]} 3... cxd4 {[%clk 0:02:59.8]}
4. Nxd4 {[%clk 0:03:05.4]} 4... Nf6 {[%clk 0:03:01.5]} 5. Nc3 {[%clk 0:03:06.6]}
5... Nc6 {[%clk 0:03:03.1]} 6. Nf3 {[%clk 0:03:01.1]} 6... g6 {[%clk 0:02:59.2]}
7. Be2 {[%clk 0:02:58.8]} 7... Bg7 {[%clk 0:03:00.6]} 8. O-O {[%clk 0:03:00]}
8... O-O {[%clk 0:03:01.9]} 9. h3 {[%clk 0:02:56.9]} 9... Bd7 {[%clk 0:03:02.7]}
10. Be3 {[%clk 0:02:58.1]} 10... Rc8 {[%clk 0:03:00.1]} 11. Qd2 {[%clk
0:02:59.2]} 11... a6 {[%clk 0:02:55.4]} 12. Bh6 {[%clk 0:03:00.4]} 12... b5
{[%clk 0:02:53.2]} 13. Rad1 {[%clk 0:02:54.7]} 13... b4 {[%clk 0:02:40.8]} 14.
Nd5 {[%clk 0:02:48.9]} 14... Nxe4 {[%clk 0:02:41.3]} 15. Qf4 {[%clk 0:02:48.5]}
15... Bxh6 {[%clk 0:02:39.4]} 16. Qxh6 {[%clk 0:02:08.7]} 16... e6 {[%clk
0:02:39.9]} 17. Bd3 {[%clk 0:01:58.4]} 17... Nf6 {[%clk 0:02:14.1]} 18. Nxf6+
{[%clk 0:01:56.2]} 18... Qxf6 {[%clk 0:02:16]} 19. Ng5 {[%clk 0:01:56.1]} 19...
Qg7 {[%clk 0:02:14]} 20. Qxg7+ {[%clk 0:01:57.5]} 20... Kxg7 {[%clk 0:02:15.9]}
21. Bxa6 {[%clk 0:01:58.4]} 21... Rc7 {[%clk 0:02:16.9]} 22. Rxd6 {[%clk
0:01:57.7]} 22... Ra8 {[%clk 0:02:16.8]} 23. Bb5 {[%clk 0:01:57]} 23... Rxa2
{[%clk 0:01:50.1]} 24. Rfd1 {[%clk 0:01:45.9]} 24... Be8 {[%clk 0:01:46.4]} 25.
Bc4 {[%clk 0:01:37.9]} 25... Rxb2 {[%clk 0:01:40.6]} 26. Bxe6 {[%clk 0:01:38.8]}
26... h6 {[%clk 0:01:33.5]} 27. Bxf7 {[%clk 0:01:25.2]} 27... Bxf7 {[%clk
0:01:32.7]} 28. Nxf7 {[%clk 0:01:25.6]} 28... Kxf7 {[%clk 0:01:32.6]} 29. R1d2
{[%clk 0:01:09]} 29... Ne7 {[%clk 0:01:30.9]} 30. Rb6 {[%clk 0:00:54.6]} 30...
Rbxc2 {[%clk 0:01:24]} 31. Rxc2 {[%clk 0:00:50.3]} 31... Rxc2 {[%clk 0:01:25.9]}
32. Rxb4 {[%clk 0:00:51.8]} 32... Nf5 {[%clk 0:01:26.8]} 33. Rf4 {[%clk
0:00:23.4]} 33... Ke6 {[%clk 0:01:26.3]} 34. g3 {[%clk 0:00:21.5]} 34... Ke5
{[%clk 0:01:17.4]} 35. h4 {[%clk 0:00:22.4]} 35... Rd2 {[%clk 0:01:13]} 36. Kg2
{[%clk 0:00:21.9]} 36... Rd4 {[%clk 0:01:13.2]} 37. Rf3 {[%clk 0:00:21.5]} 37...
Rd2 {[%clk 0:01:04.5]} 38. Rf4 {[%clk 0:00:21.9]} 38... Ne3+ {[%clk 0:01:02.5]}
39. Kf3 {[%clk 0:00:22.3]} 39... Nd5 {[%clk 0:01:03.1]} 40. Re4+ {[%clk
0:00:22.8]} 40... Kf6 {[%clk 0:01:04.5]} 41. Ra4 {[%clk 0:00:23.9]} 41... Rd3+
{[%clk 0:01:03.2]} 42. Ke4 {[%clk 0:00:24.3]} 42... Nc3+ {[%clk 0:01:03.4]} 43.
Kxd3 {[%clk 0:00:22.6]} 43... Nxa4 {[%clk 0:01:04.9]} 44. Ke4 {[%clk 0:00:24.1]}
44... Nc5+ {[%clk 0:01:05.2]} 45. Kd5 {[%clk 0:00:24]} 45... Nd3 {[%clk
0:01:05.4]} 46. f4 {[%clk 0:00:24]} 46... h5 {[%clk 0:01:06.5]} 47. Ke4 {[%clk
0:00:18.9]} 47... Ne1 {[%clk 0:01:07.5]} 48. Ke3 {[%clk 0:00:19.3]} 48... Kf5
{[%clk 0:01:08.7]} 49. Kf2 {[%clk 0:00:15.4]} 49... Nc2 {[%clk 0:01:09.3]} 50.
Kf3 {[%clk 0:00:16]} 50... Nb4 {[%clk 0:01:08.7]} 51. Ke3 {[%clk 0:00:17]} 51...
Kg4 {[%clk 0:01:10.1]} 0-1

[Event "*** Titled Tuesday Blitz"]
[Site "Chess.com"]
[Date "2019.06.04"]
[Round "1"]
[White "DamianoLew95"]
[Black "BilodeauA"]
[Result "0-1"]
[WhiteElo "2488"]
[BlackElo "2940"]
[TimeControl "180+2"]
[EndTime "13:08:46 PDT"]
[Termination "BilodeauA won by resignation"]

1. d4 {[%clk 0:02:48.4]} 1... d5 {[%clk 0:02:58.6]} 2. Bf4 {[%clk 0:02:49.5]}
2... Nf6 {[%clk 0:02:58.6]} 3. e3 {[%clk 0:02:50.6]} 3... e6 {[%clk 0:02:59.9]}
4. Nd2 {[%clk 0:02:50.5]} 4... c5 {[%clk 0:03:00.1]} 5. c3 {[%clk 0:02:51.2]}
5... Nc6 {[%clk 0:03:01.6]} 6. Ngf3 {[%clk 0:02:50.8]} 6... Be7 {[%clk
0:03:03.1]} 7. Bg3 {[%clk 0:02:51.8]} 7... O-O {[%clk 0:03:03.9]} 8. Bb5 {[%clk
0:02:45.7]} 8... Qb6 {[%clk 0:02:48.8]} 9. Bxc6 {[%clk 0:02:42]} 9... bxc6
{[%clk 0:02:49.6]} 10. O-O {[%clk 0:02:39.8]} 10... Qxb2 {[%clk 0:02:42.6]} 11.
Qb3 {[%clk 0:02:31.5]} 11... Qxb3 {[%clk 0:02:38.2]} 12. axb3 {[%clk 0:02:33.4]}
12... Nd7 {[%clk 0:02:14.8]} 13. Ra2 {[%clk 0:02:10]} 13... Bb7 {[%clk
0:02:14.2]} 14. Rfa1 {[%clk 0:02:08.8]} 14... a6 {[%clk 0:02:15.2]} 15. Ne1
{[%clk 0:02:01.8]} 15... f6 {[%clk 0:02:14.1]} 16. Nd3 {[%clk 0:02:02]} 16...
Rfe8 {[%clk 0:02:13.7]} 17. b4 {[%clk 0:01:59.9]} 17... c4 {[%clk 0:01:26.5]}
18. Nc5 {[%clk 0:01:52.4]} 18... Nxc5 {[%clk 0:01:27.7]} 19. bxc5 {[%clk
0:01:54.3]} 19... e5 {[%clk 0:01:27.1]} 20. Rb1 {[%clk 0:01:54.3]} 20... Bc8
{[%clk 0:01:24.6]} 21. Rb6 {[%clk 0:01:53]} 21... a5 {[%clk 0:01:02.4]} 22. Rxc6
{[%clk 0:01:48]} 22... Bd8 {[%clk 0:00:54.6]} 23. h3 {[%clk 0:01:22.7]} 23...
Bb7 {[%clk 0:00:43.6]} 24. Rd6 {[%clk 0:01:21]} 24... Bc7 {[%clk 0:00:40.2]} 25.
Rd7 {[%clk 0:01:05.8]} 25... Rac8 {[%clk 0:00:41.2]} 26. Nf3 {[%clk 0:00:59.6]}
26... Bc6 {[%clk 0:00:40.1]} 27. Rxc7 {[%clk 0:01:00.3]} 27... Rxc7 {[%clk
0:00:41.7]} 28. Rxa5 {[%clk 0:01:01.8]} 28... Ra8 {[%clk 0:00:38.1]} 29. Rxa8+
{[%clk 0:00:57]} 29... Bxa8 {[%clk 0:00:40]} 30. Kf1 {[%clk 0:00:38.2]} 30...
Rc6 {[%clk 0:00:38.3]} 31. dxe5 {[%clk 0:00:33.7]} 31... Rxc5 {[%clk 0:00:39.3]}
32. exf6 {[%clk 0:00:33.2]} 32... gxf6 {[%clk 0:00:40.1]} 33. Nd4 {[%clk
0:00:30.9]} 33... Ra5 {[%clk 0:00:40.8]} 34. Bd6 {[%clk 0:00:31.1]} 34... Bb7
{[%clk 0:00:40.7]} 35. Ke2 {[%clk 0:00:31]} 35... Kf7 {[%clk 0:00:39.8]} 36. Kf3
{[%clk 0:00:31]} 36... Ra2 {[%clk 0:00:40.3]} 37. g4 {[%clk 0:00:29.5]} 37...
Bc8 {[%clk 0:00:41.1]} 38. Bb4 {[%clk 0:00:29.3]} 38... Bd7 {[%clk 0:00:42.2]}
39. Kg3 {[%clk 0:00:29.4]} 39... Ba4 {[%clk 0:00:43]} 40. Kf4 {[%clk 0:00:27.4]}
40... Rxf2+ {[%clk 0:00:43.4]} 41. Kg3 {[%clk 0:00:27.3]} 41... Ra2 {[%clk
0:00:45.3]} 42. Kf4 {[%clk 0:00:27.9]} 42... Bc2 {[%clk 0:00:46.4]} 43. Nb5
{[%clk 0:00:26]} 43... Bd3 {[%clk 0:00:43.4]} 44. Nc7 {[%clk 0:00:23]} 44... Be4
{[%clk 0:00:42.6]} 45. Nb5 {[%clk 0:00:23.3]} 45... Rf2+ {[%clk 0:00:43.5]} 46.
Kg3 {[%clk 0:00:24.4]} 46... Rf3+ {[%clk 0:00:44.6]} 47. Kh4 {[%clk 0:00:25.9]}
47... Rxe3 {[%clk 0:00:44.9]} 48. Bc5 {[%clk 0:00:27.3]} 48... Rd3 {[%clk
0:00:44.6]} 49. Bd4 {[%clk 0:00:24.4]} 49... Bg2 {[%clk 0:00:44.8]} 0-1

[Event "*** Titled Tuesday Blitz"]
[Site "Chess.com"]
[Date "2019.06.04"]
[Round "1"]
[White "Sanan_Sjugirov"]
[Black "SanchezKelvin"]
[Result "1/2-1/2"]
[WhiteElo "2854"]
[BlackElo "2458"]
[TimeControl "180+2"]
[EndTime "13:08:46 PDT"]
[Termination "Game drawn by repetition"]

1. e4 {[%clk 0:03:01.9]} 1... c5 {[%clk 0:03:00.7]} 2. Nf3 {[%clk 0:03:02.5]}
2... d6 {[%clk 0:03:02]} 3. d4 {[%clk 0:03:01.4]} 3... cxd4 {[%clk 0:03:03.9]}
4. Nxd4 {[%clk 0:03:02.7]} 4... Nf6 {[%clk 0:03:04.8]} 5. Nc3 {[%clk 0:03:03.8]}
5... g6 {[%clk 0:03:06.2]} 6. Be3 {[%clk 0:03:03.3]} 6... Bg7 {[%clk 0:03:07.3]}
7. f3 {[%clk 0:03:04]} 7... O-O {[%clk 0:03:08.5]} 8. Qd2 {[%clk 0:02:59.9]}
8... Nc6 {[%clk 0:03:10.4]} 9. g4 {[%clk 0:02:56.7]} 9... Be6 {[%clk 0:03:08.3]}
10. Nxe6 {[%clk 0:02:55.3]} 10... fxe6 {[%clk 0:03:10.2]} 11. Bc4 {[%clk
0:02:56.3]} 11... Qd7 {[%clk 0:03:10.9]} 12. Bb3 {[%clk 0:02:54.5]} 12... Rac8
{[%clk 0:03:04.5]} 13. O-O-O {[%clk 0:02:44.5]} 13... Ne5 {[%clk 0:03:00.1]} 14.
Qe2 {[%clk 0:02:43.3]} 14... a6 {[%clk 0:02:46.1]} 15. Na4 {[%clk 0:02:23.3]}
15... Rc6 {[%clk 0:02:12.1]} 16. Nb6 {[%clk 0:02:15.7]} 16... Qc7 {[%clk
0:02:12.7]} 17. Bxe6+ {[%clk 0:01:52.9]} 17... Kh8 {[%clk 0:02:12.9]} 18. Nd5
{[%clk 0:01:53]} 18... Nxd5 {[%clk 0:02:10.1]} 19. Bxd5 {[%clk 0:01:54.5]} 19...
Rb6 {[%clk 0:02:03.4]} 20. Bxb6 {[%clk 0:01:44]} 20... Qxb6 {[%clk 0:02:04.1]}
21. Bb3 {[%clk 0:01:18.3]} 21... a5 {[%clk 0:01:48.6]} 22. a4 {[%clk 0:01:16.3]}
22... Nxf3 {[%clk 0:01:44.5]} 23. Rhf1 {[%clk 0:01:09.5]} 23... Nd4 {[%clk
0:01:28.5]} 24. Rxf8+ {[%clk 0:01:09.7]} 24... Bxf8 {[%clk 0:01:29.1]} 25. Qc4
{[%clk 0:01:06.1]} 25... Nxb3+ {[%clk 0:01:29.6]} 26. Qxb3 {[%clk 0:01:04.5]}
26... Qc6 {[%clk 0:01:26]} 27. Qf7 {[%clk 0:00:36.8]} 27... Bg7 {[%clk
0:01:00.6]} 28. Qxe7 {[%clk 0:00:33.8]} 28... h6 {[%clk 0:01:00.5]} 29. Qxd6
{[%clk 0:00:14.5]} 29... Qxa4 {[%clk 0:00:53]} 30. Kb1 {[%clk 0:00:14.9]} 30...
Qxe4 {[%clk 0:00:45.7]} 31. Qd8+ {[%clk 0:00:14.6]} 31... Kh7 {[%clk 0:00:45.3]}
32. Qxa5 {[%clk 0:00:15.4]} 32... Qxg4 {[%clk 0:00:43.6]} 33. Qd2 {[%clk
0:00:13.1]} 33... Qa4 {[%clk 0:00:39.2]} 34. c3 {[%clk 0:00:12.6]} 34... b5
{[%clk 0:00:38.8]} 35. h3 {[%clk 0:00:12.6]} 35... b4 {[%clk 0:00:40]} 36. cxb4
{[%clk 0:00:12.7]} 36... Qb3 {[%clk 0:00:41.1]} 37. Qc2 {[%clk 0:00:11.9]} 37...
Qxb4 {[%clk 0:00:42]} 38. Rg1 {[%clk 0:00:11.6]} 38... Qb6 {[%clk 0:00:42.6]}
39. Rd1 {[%clk 0:00:10.7]} 39... Qb5 {[%clk 0:00:41.4]} 40. h4 {[%clk 0:00:11]}
40... h5 {[%clk 0:00:42.2]} 41. Rd2 {[%clk 0:00:10]} 41... Qb4 {[%clk 0:00:42]}
42. Rg2 {[%clk 0:00:09.9]} 42... Qe1+ {[%clk 0:00:43.1]} 43. Qc1 {[%clk
0:00:09.2]} 43... Qxh4 {[%clk 0:00:42.6]} 44. Qc2 {[%clk 0:00:06.8]} 44... Qe1+
{[%clk 0:00:43.2]} 45. Ka2 {[%clk 0:00:08.1]} 45... Qa5+ {[%clk 0:00:44]} 46.
Kb1 {[%clk 0:00:09.6]} 46... Qe1+ {[%clk 0:00:45]} 47. Ka2 {[%clk 0:00:10.6]}
47... Qe6+ {[%clk 0:00:45.5]} 48. Kb1 {[%clk 0:00:09.9]} 48... Qe1+ {[%clk
0:00:44.6]} 1/2-1/2

[Event "*** Titled Tuesday Blitz"]
[Site "Chess.com"]
[Date "2019.06.04"]
[Round "1"]
[White "JozefKneht"]
[Black "Anaiy"]
[Result "1-0"]
[WhiteElo "2512"]
[BlackElo "1991"]
[TimeControl "180+2"]
[EndTime "13:08:50 PDT"]
[Termination "JozefKneht won by resignation"]

1. Nf3 {[%clk 0:03:00.5]} 1... d5 {[%clk 0:03:00.6]} 2. c4 {[%clk 0:03:00.4]}
2... e6 {[%clk 0:03:00.8]} 3. b3 {[%clk 0:03:01.4]} 3... Nf6 {[%clk 0:03:01.3]}
4. g3 {[%clk 0:03:02.9]} 4... Be7 {[%clk 0:03:02.1]} 5. Bg2 {[%clk 0:03:04.4]}
5... O-O {[%clk 0:03:02.9]} 6. Bb2 {[%clk 0:03:05.2]} 6... c5 {[%clk 0:03:01.3]}
7. O-O {[%clk 0:03:05.8]} 7... Nc6 {[%clk 0:03:01.6]} 8. e3 {[%clk 0:03:06.2]}
8... b6 {[%clk 0:02:54.2]} 9. Nc3 {[%clk 0:03:05.9]} 9... Bb7 {[%clk 0:02:47.9]}
10. cxd5 {[%clk 0:03:04.5]} 10... exd5 {[%clk 0:02:43.2]} 11. d4 {[%clk
0:03:03.9]} 11... Rc8 {[%clk 0:02:32.7]} 12. Rc1 {[%clk 0:03:02.1]} 12... Qd7
{[%clk 0:02:23.2]} 13. Ne5 {[%clk 0:02:54.2]} 13... Qe6 {[%clk 0:02:13.1]} 14.
f4 {[%clk 0:02:49.3]} 14... cxd4 {[%clk 0:02:03]} 15. exd4 {[%clk 0:02:48.5]}
15... Nxd4 {[%clk 0:02:03.5]} 16. Kh1 {[%clk 0:02:49.4]} 16... Nf5 {[%clk
0:01:51.6]} 17. Re1 {[%clk 0:02:25.6]} 17... Qd6 {[%clk 0:01:43]} 18. Qd3 {[%clk
0:02:20.6]} 18... Ne4 {[%clk 0:01:28.2]} 19. Rc2 {[%clk 0:01:41.2]} 19... Nxc3
{[%clk 0:01:27]} 20. Bxc3 {[%clk 0:01:38.2]} 20... g6 {[%clk 0:01:13.6]} 21. Bb2
{[%clk 0:01:18.4]} 21... Rxc2 {[%clk 0:01:13]} 22. Qxc2 {[%clk 0:01:18.6]} 22...
Rc8 {[%clk 0:01:13.5]} 23. Qd2 {[%clk 0:01:17.3]} 23... Bf8 {[%clk 0:01:07]} 24.
Ng4 {[%clk 0:01:10.5]} 24... Bg7 {[%clk 0:00:56.8]} 25. Bxg7 {[%clk 0:01:05.2]}
25... Kxg7 {[%clk 0:00:55.1]} 26. Qb2+ {[%clk 0:01:06]} 26... f6 {[%clk
0:00:53.7]} 27. Bf3 {[%clk 0:00:47.9]} 27... Rc7 {[%clk 0:00:50.6]} 28. Qg2
{[%clk 0:00:47.3]} 28... Nd4 {[%clk 0:00:45.1]} 29. Bd1 {[%clk 0:00:39.2]} 29...
Nb5 {[%clk 0:00:33.1]} 30. h4 {[%clk 0:00:37.7]} 30... d4 {[%clk 0:00:30.3]} 31.
Bf3 {[%clk 0:00:38.7]} 31... Bxf3 {[%clk 0:00:26.5]} 32. Qxf3 {[%clk 0:00:40.6]}
32... h5 {[%clk 0:00:25.9]} 33. Nf2 {[%clk 0:00:40.8]} 33... Re7 {[%clk
0:00:23.4]} 34. Rxe7+ {[%clk 0:00:37.2]} 34... Qxe7 {[%clk 0:00:25.3]} 35. f5
{[%clk 0:00:38.6]} 35... Qe1+ {[%clk 0:00:26]} 36. Kg2 {[%clk 0:00:38.8]} 36...
Qe7 {[%clk 0:00:19.7]} 37. fxg6 {[%clk 0:00:38.7]} 37... Kxg6 {[%clk 0:00:20.2]}
38. Nd3 {[%clk 0:00:39.7]} 38... Nc3 {[%clk 0:00:19.8]} 39. Nf4+ {[%clk
0:00:39.6]} 39... Kg7 {[%clk 0:00:19.4]} 40. Nxh5+ {[%clk 0:00:39.6]} 40... Kh8
{[%clk 0:00:19.7]} 41. Nf4 {[%clk 0:00:40.3]} 41... Qa3 {[%clk 0:00:15.6]} 42.
Qh5+ {[%clk 0:00:39.9]} 42... Kg7 {[%clk 0:00:13.6]} 43. Qg6+ {[%clk 0:00:41.8]}
43... Kf8 {[%clk 0:00:14.7]} 44. Qxf6+ {[%clk 0:00:43.3]} 44... Ke8 {[%clk
0:00:16.3]} 45. Qxd4 {[%clk 0:00:43.7]} 45... Qxa2+ {[%clk 0:00:16.9]} 46. Kh3
{[%clk 0:00:44.1]} 46... Qxb3 {[%clk 0:00:16.6]} 47. h5 {[%clk 0:00:43.3]} 47...
a5 {[%clk 0:00:15]} 48. h6 {[%clk 0:00:43.7]} 48... Nb5 {[%clk 0:00:15.7]} 49.
Qe5+ {[%clk 0:00:42.9]} 49... Kf8 {[%clk 0:00:14.6]} 50. h7 {[%clk 0:00:43.4]}
50... Qc3 {[%clk 0:00:12.9]} 51. h8=Q+ {[%clk 0:00:41.2]} 1-0